bitfinex/quotes_BTCUSD_20250127
["timestamp","ask_amount","ask_price","bid_price","bid_amount"]
[1738008314113,2.00387982,99979.0,99978.0,0.00029736]
[1738008314332,2.10122711,99979.0,99978.0,0.00029736]
[1738008315513,2.11148032,99979.0,99978.0,0.00029736]
[1738008315715,1.98513303,99979.0,99978.0,0.00029736]
[1738008315919,1.97487982,99979.0,99978.0,0.00029736]
[1738008316901,1.97687982,99979.0,99978.0,0.00029736]
[1738008317117,1.97587982,99979.0,99978.0,0.00029736]
[1738008317335,2.01087982,99979.0,99978.0,0.00029736]
[1738008317535,2.10822711,99979.0,99978.0,0.00029736]
[1738008317949,2.07822711,99979.0,99978.0,0.00029736]
[1738008318171,1.98087982,99979.0,99978.0,0.00029736]
[1738008319623,1.87887982,99979.0,99978.0,0.00029736]
[1738008319812,1.97887982,99979.0,99978.0,0.00029736]
[1738008320012,1.97587982,99979.0,99978.0,0.00029736]
[1738008320350,2.07722711,99979.0,99978.0,0.00029736]
[1738008320553,2.07522711,99979.0,99978.0,0.00029736]
[1738008320833,2.07122711,99979.0,99978.0,0.00029736]
[1738008321111,1.98987982,99979.0,99978.0,0.00029736]
[1738008321784,0.250049,99967.0,99966.0,0.00173694]
[1738008322007,1.99169782,99967.0,99966.0,0.00173694]
[1738008322217,2.00169782,99967.0,99966.0,0.00173694]
[1738008322438,2.09904511,99967.0,99966.0,9.4e-07]
[1738008323027,2.10004511,99967.0,99966.0,9.4e-07]
[1738008323232,2.10009933,99967.0,99966.0,9.4e-07]
[1738008323439,2.11233939,99967.0,99966.0,9.4e-07]
[1738008323803,2.11133939,99967.0,99966.0,9.4e-07]
[1738008324024,2.11433939,99967.0,99966.0,9.4e-07]
[1738008324721,0.150088,99941.0,99937.0,0.00029694]
[1738008325015,1.74644621,99941.0,99937.0,0.00029694]
[1738008325187,1.74543682,99941.0,99937.0,0.00029694]
[1738008326626,1.74543682,99941.0,99940.0,0.004]
[1738008326830,1.74643682,99941.0,99940.0,0.001]
[1738008327030,1.89068411,99941.0,99940.0,0.001]
[1738008327253,1.90269107,99941.0,99940.0,0.001]
[1738008327639,1.75844378,99941.0,99940.0,0.001]
[1738008328455,1.65108953,99941.0,99940.0,0.001]
[1738008329725,1.65008953,99941.0,99940.0,0.001]
[1738008330122,1.64808953,99941.0,99940.0,0.001]
[1738008330652,1.64908953,99941.0,99940.0,0.001]
[1738008331079,1.49900153,99941.0,99940.0,0.001]
[1738008331294,1.49900153,99941.0,99940.0,0.32409]
[1738008331494,1.49900153,99941.0,99940.0,0.49943729]
[1738008332369,1.49900153,99941.0,99940.0,0.50515869]
[1738008332593,1.49800153,99941.0,99940.0,0.50515869]
[1738008332773,1.49900153,99941.0,99940.0,0.51519578]
[1738008333216,1.49800153,99941.0,99940.0,0.51519578]
[1738008333419,0.99631149,99941.0,99940.0,0.52419578]
[1738008333622,0.99631149,99941.0,99940.0,0.52619578]
[1738008333859,0.99631149,99941.0,99940.0,0.51749314]
[1738008334065,0.99731149,99941.0,99940.0,0.52549314]
[1738008334278,0.99631149,99941.0,99940.0,0.51749314]
[1738008334928,0.99631149,99941.0,99940.0,0.51549314]
[1738008335134,1.49900153,99941.0,99940.0,0.51549314]
[1738008335288,1.49900153,99941.0,99940.0,0.51849314]
[1738008335675,1.50000153,99941.0,99940.0,0.52349314]
[1738008335892,1.49900153,99941.0,99940.0,0.42914585]
[1738008336091,1.49900153,99941.0,99940.0,0.17005585]
[1738008336301,1.65008953,99941.0,99940.0,0.01901876]
[1738008336506,1.65008953,99941.0,99940.0,0.01329736]
[1738008336707,1.67882506,99941.0,99940.0,0.01029736]
[1738008336913,1.64808953,99941.0,99940.0,0.00129736]
[1738008337106,1.74643682,99941.0,99940.0,0.00929736]
[1738008337608,1.64808953,99941.0,99940.0,0.00129736]
[1738008338598,1.64808953,99941.0,99940.0,0.02729736]
[1738008339040,1.64808953,99941.0,99940.0,0.02929736]
[1738008339284,1.64808953,99941.0,99940.0,0.02429736]
[1738008339453,1.49800153,99941.0,99940.0,0.32438736]
[1738008339672,1.59534882,99941.0,99940.0,0.00329736]
[1738008339844,1.59534882,99941.0,99940.0,0.00897892]
[1738008340045,1.74543682,99941.0,99940.0,0.00329736]
[1738008340264,1.82763682,99941.0,99940.0,0.00329736]
[1738008340464,1.82763682,99941.0,99940.0,0.00129736]
[1738008340804,1.64808953,99941.0,99940.0,0.02929736]
[1738008341010,1.49800153,99941.0,99940.0,0.17938736]
[1738008341217,1.49800153,99941.0,99940.0,0.32938736]
[1738008341427,1.49800153,99941.0,99940.0,0.33506892]
[1738008341622,1.49800153,99941.0,99940.0,0.43241621]
[1738008341623,0.99531149,99941.0,99940.0,0.43241621]
[1738008341832,0.99531149,99941.0,99940.0,0.43441621]
[1738008342043,1.49800153,99941.0,99940.0,0.18197892]
[1738008342444,1.49900153,99941.0,99940.0,0.17997892]
[1738008342649,1.49800153,99941.0,99940.0,0.33006892]
[1738008342850,1.49800153,99941.0,99940.0,0.18197892]
[1738008343057,1.49800153,99941.0,99940.0,0.18697892]
[1738008343257,1.64808953,99941.0,99940.0,0.17997892]
[1738008343485,1.64808953,99941.0,99940.0,0.17429736]
[1738008343779,1.64808953,99941.0,99940.0,0.00829736]
[1738008344137,1.64808953,99941.0,99940.0,0.00329736]
[1738008344375,1.74543682,99941.0,99940.0,0.00329736]
[1738008344763,1.8413686,99941.0,99940.0,0.00129736]
[1738008345006,1.8513686,99941.0,99940.0,0.00129736]
[1738008345249,0.355793,99938.0,99937.0,9.4e-07]
[1738008345453,0.59864029,99938.0,99937.0,9.4e-07]
[1738008346734,0.71304029,99938.0,99937.0,9.4e-07]
[1738008347005,0.90864029,99938.0,99937.0,9.4e-07]
[1738008347225,0.15015,99900.0,99899.0,0.00029715]
[1738008347441,1.74650821,99900.0,99899.0,0.00029715]
[1738008347651,1.74549882,99900.0,99899.0,0.00029715]
[1738008348562,1.74549882,99900.0,99899.0,0.02379102]
[1738008349708,1.74549882,99900.0,99899.0,0.00079102]
[1738008350114,1.74549882,99900.0,99899.0,0.00179102]
[1738008350355,1.84284611,99900.0,99899.0,0.00179102]
[1738008351067,1.74549882,99900.0,99899.0,0.02479102]
[1738008352469,1.49800153,99900.0,99899.0,0.17494202]
[1738008352927,1.49800153,99900.0,99899.0,0.03052236]
[1738008353149,1.49800153,99900.0,99899.0,0.02479102]
[1738008353526,1.49800153,99900.0,99899.0,0.17494202]
[1738008353739,1.49800153,99900.0,99899.0,0.02479102]
[1738008353953,1.49800153,99900.0,99899.0,0.03052073]
[1738008354459,1.49800153,99900.0,99899.0,0.02479102]
[1738008354666,1.66529234,99900.0,99899.0,0.02479102]
[1738008355069,1.64815153,99900.0,99899.0,0.02479102]
[1738008358018,1.64815153,99900.0,99899.0,0.00179102]
[1738008358019,1.74549882,99900.0,99899.0,0.00179102]
[1738008358224,1.82289882,99900.0,99899.0,0.00179102]
[1738008358609,1.88279563,99900.0,99899.0,0.00179102]
[1738008358815,1.90276245,99900.0,99899.0,0.00179102]
[1738008358998,2.00010974,99900.0,99899.0,0.00179102]
[1738008359218,1.98014292,99900.0,99899.0,0.00179102]
[1738008359426,1.83399563,99900.0,99899.0,0.00079102]
[1738008359836,1.83599563,99900.0,99899.0,0.00079102]
[1738008360043,1.74849882,99900.0,99899.0,0.00079102]
[1738008360452,1.65115153,99900.0,99899.0,0.00079102]
[1738008360873,1.50100153,99900.0,99899.0,0.00079102]
[1738008361073,1.50000153,99900.0,99899.0,0.17394202]
[1738008361280,1.50100153,99900.0,99899.0,0.17394202]
[1738008361482,1.50100153,99900.0,99899.0,0.02952558]
[1738008361627,1.50100153,99900.0,99899.0,0.02379102]
[1738008361808,1.49800153,99900.0,99899.0,0.17967658]
[1738008362017,1.74549882,99900.0,99899.0,0.02952558]
[1738008362261,1.84484611,99900.0,99899.0,0.02952558]
[1738008362452,1.74749882,99900.0,99899.0,0.02379102]
[1738008362916,1.74749882,99900.0,99899.0,0.02479102]
[1738008363119,1.74549882,99900.0,99899.0,0.02379102]
[1738008363460,1.74549882,99900.0,99899.0,0.00079102]
[1738008363461,1.87299882,99900.0,99899.0,0.00079102]
[1738008364824,1.87199882,99900.0,99899.0,0.00079102]
[1738008365223,1.97134611,99900.0,99899.0,0.00079102]
[1738008365436,1.97234611,99900.0,99899.0,0.00079102]
[1738008366774,0.1,99879.0,99878.0,0.00029736]
[1738008367002,0.150252,99832.0,99816.0,0.200367]
[1738008367217,0.150257,99829.0,99816.0,0.200367]
[1738008367429,0.150259,99827.0,99818.0,0.150273]
[1738008367623,0.150259,99827.0,99817.0,0.01026452]
[1738008368038,0.15126839,99827.0,99821.0,0.15]
[1738008368249,0.150259,99827.0,99821.0,0.15]
[1738008368461,1.49900153,99832.0,99830.0,0.15]
[1738008368668,1.49800153,99832.0,99830.0,0.15]
[1738008368881,1.49800153,99832.0,99831.0,0.02910048]
[1738008369111,1.64825353,99832.0,99831.0,0.023]
[1738008369347,1.64825353,99832.0,99831.0,0.02910048]
[1738008369557,1.64825353,99832.0,99831.0,0.023]
[1738008370233,1.64825353,99832.0,99831.0,0.025]
[1738008371103,1.64825353,99832.0,99831.0,0.027]
[1738008371318,1.49800153,99832.0,99831.0,0.027]
[1738008371531,1.49800153,99832.0,99831.0,0.327253]
[1738008371775,1.64825353,99832.0,99831.0,0.177]
[1738008371993,1.64825353,99832.0,99831.0,0.03309963]
[1738008372198,1.64825353,99832.0,99831.0,0.027]
[1738008373060,1.64825353,99832.0,99831.0,0.025]
[1738008373271,1.64925353,99832.0,99831.0,0.025]
[1738008373733,0.150259,99827.0,99826.0,0.000421]
[1738008373968,0.15126839,99827.0,99826.0,0.000421]
[1738008374685,0.24861568,99827.0,99826.0,0.000421]
[1738008374942,0.24760629,99827.0,99826.0,0.000421]
[1738008375144,0.34495358,99827.0,99826.0,0.000421]
[1738008375586,0.34495358,99827.0,99826.0,0.001421]
[1738008375939,0.34495358,99827.0,99826.0,0.000421]
[1738008376141,0.34495358,99827.0,99826.0,0.001421]
[1738008376749,0.24760629,99827.0,99826.0,0.001421]
[1738008378980,0.150259,99827.0,99826.0,0.001421]
[1738008379187,1.49800153,99832.0,99826.0,0.001421]
[1738008379410,1.49800153,99832.0,99827.0,0.173259]
[1738008379817,1.49800153,99832.0,99831.0,0.300253]
[1738008380026,1.49800153,99832.0,99831.0,0.323253]
[1738008380241,1.49800153,99832.0,99831.0,0.33088844]
[1738008380458,1.49900153,99832.0,99831.0,0.33088844]
[1738008381226,1.49900153,99832.0,99831.0,0.18163544]
[1738008381631,1.49800153,99832.0,99831.0,0.18063544]
[1738008382056,1.49900153,99832.0,99831.0,0.18063544]
[1738008382274,1.74660082,99832.0,99831.0,0.00763544]
[1738008382477,1.74660082,99832.0,99826.0,0.000421]
[1738008382478,0.150259,99827.0,99826.0,0.000421]
[1738008382730,0.24861568,99827.0,99826.0,0.000421]
[1738008382929,0.24760629,99827.0,99826.0,0.000421]
[1738008384027,0.24760629,99827.0,99790.0,0.17350425]
[1738008384028,0.1503,99800.0,99766.0,0.0455]
[1738008384233,1.82505821,99800.0,99799.0,0.00044576]
[1738008384418,1.85012594,99800.0,99799.0,0.00044576]
[1738008384893,1.69982594,99800.0,99799.0,0.00044576]
[1738008385126,1.82404882,99800.0,99799.0,0.00044576]
[1738008385332,1.82504882,99800.0,99799.0,0.00044576]
[1738008385962,1.64930153,99800.0,99799.0,0.00044576]
[1738008386172,1.49900153,99800.0,99799.0,0.00044576]
[1738008386377,1.49900153,99800.0,99799.0,0.32374776]
[1738008386586,1.49900153,99800.0,99799.0,0.33252449]
[1738008388050,1.49900153,99800.0,99799.0,0.33452449]
[1738008388239,1.49800153,99800.0,99799.0,0.33452449]
[1738008388383,1.49900153,99800.0,99799.0,0.33752449]
[1738008388795,1.49800153,99800.0,99799.0,0.43287178]
[1738008388998,1.49900153,99800.0,99799.0,0.43787178]
[1738008389400,1.49900153,99800.0,99799.0,0.43287178]
[1738008389757,1.50000153,99800.0,99799.0,0.34052449]
[1738008389897,1.49900153,99800.0,99799.0,0.33552449]
[1738008390100,1.49900153,99800.0,99799.0,0.33252449]
[1738008390652,1.49900153,99800.0,99799.0,0.33452449]
[1738008390893,0.001,99800.0,99799.0,0.42987178]
[1738008391101,0.50269004,99829.0,99810.0,0.300285]
[1738008391304,1.49800153,99840.0,99839.0,0.300241]
[1738008391508,0.99531149,99840.0,99839.0,0.323241]
[1738008391714,0.99531149,99840.0,99839.0,0.33197538]
[1738008392817,0.99631149,99840.0,99839.0,0.33712357]
[1738008393022,0.99531149,99840.0,99839.0,0.33212357]
[1738008393441,0.99531149,99840.0,99839.0,0.18188257]
[1738008393680,1.14555149,99840.0,99839.0,0.03188257]
[1738008393903,0.99531149,99840.0,99839.0,0.02314819]
[1738008394153,1.14555149,99840.0,99839.0,0.02314819]
[1738008394400,0.99531149,99840.0,99839.0,0.03114819]
[1738008394672,0.99631149,99840.0,99839.0,0.03114819]
[1738008394918,1.14555149,99840.0,99839.0,0.02314819]
[1738008395155,1.14655149,99840.0,99839.0,0.03114819]
[1738008395566,1.14555149,99840.0,99839.0,0.02314819]
[1738008395976,1.14555149,99840.0,99839.0,0.02714819]
[1738008398140,0.99531149,99840.0,99839.0,0.02714819]
[1738008398342,0.99531149,99840.0,99839.0,0.17738919]
[1738008398550,0.99531149,99840.0,99839.0,0.18608881]
[1738008398760,0.99531149,99840.0,99839.0,0.33608881]
[1738008398927,0.99531149,99840.0,99839.0,0.18584781]
[1738008399341,1.14555149,99840.0,99839.0,0.17714819]
[1738008399663,0.99531149,99840.0,99839.0,0.17714819]
[1738008400498,0.99531149,99840.0,99839.0,0.32738919]
[1738008400726,0.99531149,99840.0,99839.0,0.17714819]
[1738008400939,0.99531149,99840.0,99839.0,0.18584781]
[1738008401193,0.99531149,99840.0,99839.0,0.17714819]
[1738008401454,0.99531149,99840.0,99839.0,0.33608881]
[1738008401683,0.99531149,99840.0,99839.0,0.32738919]
[1738008401896,0.99531149,99840.0,99839.0,0.43343971]
[1738008402137,0.99531149,99840.0,99839.0,0.44326797]
[1738008403778,0.99531149,99840.0,99839.0,0.43926797]
[1738008403978,0.99631149,99840.0,99839.0,0.44926797]
[1738008405879,0.001,99840.0,99839.0,0.44926797]
[1738008406309,0.00090023,99840.0,99839.0,0.44926797]
[1738008407274,0.99531149,99843.0,99842.0,0.300237]
[1738008407514,0.0815805,99864.0,99863.0,0.323205]
[1738008407774,1.07689199,99864.0,99863.0,0.323205]
[1738008408037,1.57958203,99864.0,99863.0,0.33187803]
[1738008408878,1.57958203,99864.0,99863.0,0.34685692]
[1738008409292,1.57958203,99864.0,99863.0,0.34385692]
[1738008410091,1.57958203,99864.0,99863.0,0.33387803]
[1738008410831,1.57958203,99864.0,99863.0,0.03367303]
[1738008411215,1.58058203,99864.0,99863.0,0.031]
[1738008411444,1.57958203,99864.0,99863.0,0.03167103]
[1738008411864,1.57958203,99864.0,99863.0,0.027]
[1738008412064,1.57958203,99864.0,99863.0,0.324205]
[1738008412423,1.57958203,99864.0,99863.0,0.33387603]
[1738008413230,1.57948228,99864.0,99863.0,0.33387603]
[1738008413663,1.57948228,99864.0,99863.0,0.16067103]
[1738008413882,1.72968628,99864.0,99863.0,0.01067103]
[1738008414081,0.150207,99862.0,99848.0,0.200302]
[1738008414280,0.00100939,99862.0,99849.0,0.173]
[1738008414489,0.00100939,99862.0,99840.0,0.200319]
[1738008414490,0.05020939,99861.0,99846.0,0.15]
[1738008414737,0.150219,99854.0,99847.0,0.023]
[1738008414936,1.49800153,99854.0,99846.0,0.15]
[1738008415140,0.15024,99840.0,99839.0,0.00014819]
[1738008415343,1.72615092,99840.0,99839.0,0.00014819]
[1738008415595,1.72514153,99840.0,99839.0,0.00014819]
[1738008417600,1.49800153,99840.0,99839.0,0.02614819]
[1738008417806,1.49800153,99840.0,99839.0,0.17638919]
[1738008418248,1.49800153,99840.0,99839.0,0.17738919]
[1738008418452,1.49800153,99840.0,99839.0,0.02714819]
[1738008418666,1.49800153,99840.0,99839.0,0.17738919]
[1738008418872,1.49800153,99840.0,99839.0,0.02714819]
[1738008419073,1.49800153,99840.0,99839.0,0.17738919]
[1738008419276,1.49800153,99840.0,99839.0,0.17768697]
[1738008419911,1.49800153,99840.0,99839.0,0.32768697]
[1738008420527,1.49800153,99840.0,99839.0,0.42503426]
[1738008420737,1.49800153,99840.0,99839.0,0.96443426]
[1738008421472,1.49800153,99840.0,99839.0,0.96343426]
[1738008421677,1.49800153,99840.0,99839.0,0.96443426]
[1738008421922,1.49800153,99840.0,99839.0,0.96143426]
[1738008422196,1.49900153,99840.0,99839.0,0.96743426]
[1738008422616,1.49900153,99840.0,99839.0,0.84708697]
[1738008423014,1.49900153,99840.0,99839.0,0.86908697]
[1738008423577,1.49900153,99840.0,99839.0,0.87108697]
[1738008424283,1.49900153,99840.0,99839.0,0.00844597]
[1738008424284,1.64924153,99840.0,99839.0,0.00844597]
[1738008425527,1.64824153,99840.0,99839.0,0.02544597]
[1738008425757,1.49800153,99840.0,99839.0,0.17544597]
[1738008425960,1.49800153,99840.0,99839.0,0.32868697]
[1738008425961,0.99531149,99840.0,99839.0,0.32868697]
[1738008426164,0.99531149,99840.0,99839.0,0.33537805]
[1738008426593,0.99531149,99840.0,99839.0,0.33637805]
[1738008427221,0.99531149,99840.0,99839.0,0.33237805]
[1738008427423,0.99531149,99840.0,99839.0,0.33337805]
[1738008428004,0.99531149,99840.0,99839.0,0.33237805]
[1738008428616,0.99531149,99840.0,99839.0,0.33537805]
[1738008428846,0.99531149,99852.0,99840.0,0.023]
[1738008429049,0.99531149,99852.0,99851.0,0.323223]
[1738008429605,0.99531149,99852.0,99851.0,0.33190491]
[1738008430033,0.50269004,99869.0,99852.0,0.1047]
[1738008430233,0.0001418,99878.0,99877.0,0.300184]
[1738008430436,0.0001418,99878.0,99877.0,0.42919054]
[1738008430810,0.0001418,99878.0,99877.0,0.96859054]
[1738008431641,0.00063475,99878.0,99877.0,0.87324325]
[1738008431861,0.00063475,99878.0,99877.0,0.87124325]
[1738008432259,0.00063475,99878.0,99877.0,0.97159054]
[1738008432872,0.00063475,99878.0,99877.0,0.87424325]
[1738008433500,0.00063475,99878.0,99877.0,0.87524325]
[1738008434311,0.00063475,99878.0,99877.0,0.97259054]
[1738008435309,0.00063475,99878.0,99877.0,0.43319054]
[1738008435943,0.00063475,99878.0,99877.0,0.43219054]
[1738008436589,0.00063475,99878.0,99877.0,0.42919054]
[1738008436795,0.00063475,99878.0,99877.0,0.43019054]
[1738008437149,0.00063475,99878.0,99877.0,0.43319054]
[1738008437363,0.00063475,99878.0,99877.0,0.34184325]
[1738008437588,0.00063475,99878.0,99877.0,0.01465925]
[1738008437780,0.00063475,99878.0,99877.0,0.15884325]
[1738008438043,0.00163475,99878.0,99877.0,0.19184325]
[1738008438342,0.00063475,99878.0,99877.0,0.18484325]
[1738008439303,0.15081775,99878.0,99877.0,0.01165925]
[1738008439712,0.15182714,99878.0,99877.0,0.005]
[1738008439941,0.15081775,99878.0,99877.0,0.005]
[1738008440162,0.15182714,99878.0,99877.0,0.006]
[1738008440582,0.150192,99873.0,99865.0,0.323201]
[1738008440769,1.64920292,99873.0,99865.0,0.323201]
[1738008440894,1.49901092,99873.0,99869.0,0.023]
[1738008441112,1.49800153,99873.0,99872.0,0.323192]
[1738008443214,1.49800153,99873.0,99872.0,0.33282218]
[1738008443624,1.49800153,99873.0,99872.0,0.43316947]
[1738008444246,1.49800153,99873.0,99872.0,0.44333249]
[1738008447672,0.50269004,99873.0,99872.0,0.98273249]
[1738008447891,0.50269004,99873.0,99872.0,0.87522218]
[1738008448556,0.50269004,99873.0,99872.0,0.87422218]
[1738008448760,0.50269004,99873.0,99872.0,0.97156947]
[1738008449404,0.50269004,99873.0,99872.0,0.96856947]
[1738008449613,0.00063475,99878.0,99877.0,0.300184]
[1738008449821,0.00063475,99878.0,99877.0,0.42053129]
[1738008450020,0.00063475,99878.0,99877.0,0.42915939]
[1738008450453,0.08233475,99878.0,99877.0,0.1586281]
[1738008450667,0.08233475,99878.0,99877.0,0.3088121]
[1738008451064,0.08233475,99878.0,99877.0,0.3128121]
[1738008451270,0.08233475,99878.0,99877.0,0.1816281]
[1738008451904,0.08233475,99878.0,99877.0,0.1826281]
[1738008452454,0.08233475,99878.0,99877.0,0.1586281]
[1738008452455,0.28101775,99878.0,99877.0,0.1586281]
[1738008452671,0.13083475,99878.0,99877.0,0.15]
[1738008452858,0.00063475,99878.0,99877.0,0.300184]
[1738008453059,0.00063475,99878.0,99877.0,0.33119064]
[1738008454125,0.00163475,99878.0,99877.0,0.33119064]
[1738008454777,0.00263475,99878.0,99877.0,0.33119064]
[1738008455120,0.00263475,99878.0,99877.0,0.42853793]
[1738008455349,0.00163475,99878.0,99877.0,0.42853793]
[1738008455734,0.00063475,99878.0,99877.0,0.42953793]
[1738008456077,0.00063475,99878.0,99877.0,0.43153793]
[1738008456286,0.00063475,99878.0,99877.0,0.42853793]
[1738008456515,0.00063475,99878.0,99877.0,0.42953793]
[1738008456706,0.00063475,99878.0,99877.0,0.43353793]
[1738008459289,0.00063475,99878.0,99877.0,0.42953793]
[1738008459528,0.00063475,99878.0,99877.0,0.42853793]
[1738008459797,0.00063475,99878.0,99877.0,0.43953793]
[1738008460039,0.50332479,99878.0,99877.0,0.54940664]
[1738008460278,1.69501928,99878.0,99877.0,0.01500664]
[1738008460698,1.54483628,99878.0,99865.0,0.18303282]
[1738008460918,0.00100939,99877.0,99871.0,0.173]
[1738008461123,1.69501928,99878.0,99867.0,0.023]
[1738008461124,0.150187,99875.0,99867.0,0.023]
[1738008461327,0.150187,99876.0,99872.0,0.00869532]
[1738008461555,0.150187,99876.0,99869.0,0.023]
[1738008461755,1.69501928,99878.0,99877.0,0.025]
[1738008461964,1.69501928,99878.0,99877.0,0.03]
[1738008462168,1.69501928,99878.0,99877.0,0.028]
[1738008462373,1.69501928,99878.0,99877.0,0.023]
[1738008463809,0.150219,99854.0,99840.0,0.00029778]
[1738008464030,0.150232,99845.0,99844.0,0.00871372]
[1738008464266,0.150238,99841.0,99840.0,0.00029778]
[1738008464509,1.64823953,99841.0,99840.0,0.00029778]
[1738008465582,1.73153953,99841.0,99840.0,0.00029778]
[1738008465789,1.73153953,99841.0,99840.0,0.00044597]
[1738008466018,1.73153953,99841.0,99840.0,0.02644597]
[1738008466258,1.73153953,99841.0,99840.0,0.02744597]
[1738008468192,1.73153953,99841.0,99840.0,0.02344597]
[1738008468633,1.73153953,99841.0,99840.0,0.02644597]
[1738008468766,1.73153953,99841.0,99840.0,0.02344597]
[1738008468999,1.73153953,99841.0,99840.0,0.02744597]
[1738008469380,1.73153953,99841.0,99840.0,0.02644597]
[1738008469793,1.73153953,99841.0,99840.0,0.02744597]
[1738008469993,1.97563411,99841.0,99840.0,0.00444597]
[1738008471024,1.88842037,99841.0,99840.0,0.00444597]
[1738008471199,1.88842037,99841.0,99840.0,0.00144597]
[1738008471815,1.88842037,99841.0,99840.0,0.00044597]
[1738008472009,1.89142037,99841.0,99840.0,0.00044597]
[1738008472402,1.88942037,99841.0,99840.0,0.00044597]
[1738008472622,1.98776766,99841.0,99840.0,0.00044597]
[1738008473028,1.98976766,99841.0,99840.0,0.00044597]
[1738008473222,2.00959646,99841.0,99840.0,0.00044597]
[1738008473631,1.91224917,99841.0,99840.0,0.00044597]
[1738008474355,1.88228682,99841.0,99840.0,0.00044597]
[1738008474948,1.88028682,99841.0,99840.0,0.00044597]
[1738008475277,1.88228682,99841.0,99840.0,0.00044597]
[1738008475702,1.88028682,99841.0,99840.0,0.00044597]
[1738008475935,1.78293953,99841.0,99840.0,0.00044597]
[1738008476476,1.78393953,99841.0,99840.0,0.00044597]
[1738008477244,1.88128682,99841.0,99840.0,0.00044597]
[1738008478111,1.91303948,99841.0,99840.0,0.00044597]
[1738008478317,1.87928682,99841.0,99840.0,0.00044597]
[1738008478494,1.88128682,99841.0,99840.0,0.00044597]
[1738008479516,1.88142852,99841.0,99840.0,0.00044597]
[1738008479957,0.0769,99816.0,99777.0,0.3273]
[1738008480104,0.1503,99800.0,99799.0,0.00044584]
[1738008480307,1.64830153,99800.0,99799.0,0.00044584]
[1738008480883,1.72620153,99800.0,99799.0,0.00044584]
[1738008481384,1.82354882,99800.0,99799.0,0.00044584]
[1738008481795,1.92089611,99800.0,99799.0,0.00044584]
[1738008482177,1.96879611,99800.0,99799.0,0.00044584]
[1738008483597,1.97879611,99800.0,99799.0,0.00044584]
[1738008483777,2.00179611,99800.0,99799.0,8.4e-07]
[1738008484686,0.15036,99760.0,99759.0,0.08824]
[1738008484892,0.15036,99760.0,99759.0,0.00049494]
[1738008484893,1.49800153,99760.0,99759.0,0.00049494]
[1738008485070,1.64836153,99760.0,99759.0,0.03314733]
[1738008485437,1.64836153,99760.0,99759.0,0.02349494]
[1738008485644,1.49800153,99760.0,99759.0,0.02349494]
[1738008485844,1.49800153,99760.0,99759.0,0.32385694]
[1738008486253,1.49800153,99760.0,99759.0,0.18519296]
[1738008487103,1.49800153,99760.0,99759.0,0.18419296]
[1738008487308,1.49800153,99760.0,99759.0,0.17449494]
[1738008487918,1.49800153,99760.0,99759.0,0.18419162]
[1738008488119,1.49800153,99760.0,99759.0,0.32485694]
[1738008488505,1.49800153,99760.0,99759.0,0.33455388]
[1738008488947,1.49800153,99760.0,99759.0,0.18419188]
[1738008489152,1.49800153,99760.0,99759.0,0.18519188]
[1738008489306,1.64836153,99760.0,99759.0,0.18519188]
[1738008489514,1.49800153,99760.0,99759.0,0.17549494]
[1738008490049,1.49800153,99760.0,99759.0,0.18519188]
[1738008491532,1.64836153,99760.0,99759.0,0.18519188]
[1738008491991,1.64836153,99760.0,99759.0,0.02579251]
[1738008492172,1.64836153,99760.0,99759.0,0.02479251]
[1738008492371,1.74570882,99760.0,99759.0,0.00179251]
[1738008492593,1.86970882,99760.0,99759.0,0.00179251]
[1738008492930,1.86970882,99760.0,99759.0,0.00279251]
[1738008493132,1.97694994,99760.0,99759.0,0.00279251]
[1738008493535,1.97694994,99760.0,99759.0,0.00179251]
[1738008493739,1.97794994,99760.0,99759.0,0.00079251]
[1738008493966,1.97794994,99760.0,99718.0,0.200565]
[1738008493967,0.381478,99748.0,99726.0,0.150411]
[1738008494162,0.381478,99748.0,99747.0,0.01520907]
[1738008494163,1.97682682,99748.0,99747.0,0.01520907]
[1738008494364,2.07417411,99748.0,99747.0,0.01520907]
[1738008494567,1.97682682,99748.0,99747.0,0.01520907]
[1738008495434,1.87682682,99748.0,99747.0,0.01520907]
[1738008495653,1.88182682,99748.0,99747.0,0.01520907]
[1738008495830,1.50300153,99748.0,99747.0,0.03820907]
[1738008496038,1.65337953,99748.0,99747.0,0.03820907]
[1738008496235,1.65537953,99748.0,99747.0,0.03820907]
[1738008496439,1.50500153,99748.0,99747.0,0.33858907]
[1738008496908,1.50300153,99748.0,99747.0,0.34862967]
[1738008497134,1.49800153,99748.0,99747.0,0.34862967]
[1738008497827,1.64837953,99748.0,99747.0,0.04824967]
[1738008498055,1.74572682,99748.0,99747.0,0.02524967]
[1738008498254,1.74572682,99748.0,99747.0,0.01520907]
[1738008498456,1.82612682,99748.0,99747.0,0.01520907]
[1738008498658,1.82612682,99748.0,99747.0,0.01620907]
[1738008499204,1.97307411,99748.0,99747.0,0.01520907]
[1738008499426,1.97507411,99748.0,99747.0,0.01520907]
[1738008500012,1.87772682,99748.0,99747.0,0.01520907]
[1738008500193,1.49800153,99748.0,99747.0,0.33858907]
[1738008500557,1.50100153,99748.0,99747.0,0.34862231]
[1738008501154,1.49892052,99748.0,99747.0,0.34862231]
[1738008501506,0.003,99748.0,99747.0,0.4459696]
[1738008501703,0.004,99748.0,99747.0,0.43593636]
[1738008501918,0.001,99748.0,99747.0,0.44596]
[1738008502071,0.99531149,99764.0,99763.0,0.300356]
[1738008502279,1.49800153,99764.0,99763.0,0.31036699]
[1738008502694,1.49800153,99764.0,99763.0,0.33336699]
[1738008503503,0.99531149,99764.0,99763.0,0.33636699]
[1738008503737,0.99531149,99764.0,99763.0,0.33336699]
[1738008503876,0.99531149,99764.0,99763.0,0.75801428]
[1738008504080,0.50269004,99775.0,99774.0,0.323339]
[1738008504291,0.99531149,99776.0,99774.0,0.323339]
[1738008504292,0.99531149,99776.0,99775.0,0.323338]
[1738008504496,0.99531149,99776.0,99775.0,0.33330565]
[1738008505724,0.99531149,99776.0,99775.0,0.33630565]
[1738008505947,0.99531149,99776.0,99775.0,0.33430565]
[1738008506148,0.99531149,99776.0,99775.0,0.33330565]
[1738008506393,0.99531149,99776.0,99775.0,0.33630565]
[1738008506608,0.99531149,99776.0,99775.0,0.03396765]
[1738008507075,0.99531149,99776.0,99775.0,0.03696765]
[1738008507276,0.99531149,99776.0,99775.0,0.18730565]
[1738008507862,0.99531149,99776.0,99775.0,0.18630565]
[1738008508283,0.99531149,99776.0,99775.0,0.18430565]
[1738008508481,0.99531149,99776.0,99775.0,0.18530565]
[1738008508672,0.99531149,99776.0,99775.0,0.18430565]
[1738008509021,0.99531149,99776.0,99775.0,0.18530565]
[1738008509228,0.99531149,99776.0,99775.0,0.18430565]
[1738008509437,0.99531149,99776.0,99775.0,0.18330565]
[1738008509644,0.99531149,99776.0,99775.0,0.01296765]
[1738008509870,0.99531149,99776.0,99775.0,0.301338]
[1738008510096,0.99531149,99776.0,99775.0,0.33528371]
[1738008510580,0.99531149,99776.0,99775.0,0.18494571]